[Event "Early-Titled-Tuesday-Blitz-March-26-2024"]
[Site "Chess.com"]
[Date "2024.03.26"]
[Round "11"]
[White "Stanbad1"]
[Black "Pedrada88"]
[Result "1/2-1/2"]
[WhiteElo "2654"]
[BlackElo "2561"]
[TimeControl "180+1"]
[EndTime "10:07:47 PDT"]
[Termination "Game drawn - timeout vs insufficient material"]

1. d4 {[%clk 0:02:58.9]} 1... b6 {[%clk 0:02:59.6]} 2. Nc3 {[%clk 0:02:58.5]}
2... Bb7 {[%clk 0:02:58.8]} 3. Bf4 {[%clk 0:02:58.9]} 3... e6 {[%clk 0:02:58.3]}
4. e3 {[%clk 0:02:59]} 4... Nf6 {[%clk 0:02:57.1]} 5. Nf3 {[%clk 0:02:59.1]}
5... Bb4 {[%clk 0:02:57.1]} 6. Bc4 {[%clk 0:02:49]} 6... Ne4 {[%clk 0:02:53.1]}
7. O-O {[%clk 0:02:46.8]} 7... Nxc3 {[%clk 0:02:52.2]} 8. bxc3 {[%clk
0:02:47.2]} 8... Bxc3 {[%clk 0:02:52.8]} 9. Rb1 {[%clk 0:02:47.5]} 9... O-O
{[%clk 0:02:51]} 10. Ne5 {[%clk 0:02:46.5]} 10... d6 {[%clk 0:02:47.3]} 11. Nxf7
{[%clk 0:02:31.8]} 11... Rxf7 {[%clk 0:02:39.8]} 12. Bxe6 {[%clk 0:02:30.5]}
12... Qf6 {[%clk 0:02:40.3]} 13. Bxf7+ {[%clk 0:02:29]} 13... Qxf7 {[%clk
0:02:41.2]} 14. Qg4 {[%clk 0:02:27.3]} 14... Nd7 {[%clk 0:02:35.8]} 15. Rb3
{[%clk 0:02:23.9]} 15... Nf6 {[%clk 0:02:33]} 16. Qe2 {[%clk 0:02:00.7]} 16...
Nd5 {[%clk 0:02:13]} 17. Bg3 {[%clk 0:01:57]} 17... a5 {[%clk 0:02:11.8]} 18.
Qc4 {[%clk 0:01:43.4]} 18... Ba6 {[%clk 0:01:39.8]} 19. Qc6 {[%clk 0:01:41.8]}
19... Rf8 {[%clk 0:01:27.2]} 20. Rfb1 {[%clk 0:01:35.6]} 20... Bd2 {[%clk
0:01:09.6]} 21. h3 {[%clk 0:01:23.5]} 21... Nb4 {[%clk 0:00:47.1]} 22. Qe4
{[%clk 0:01:17.5]} 22... Nxa2 {[%clk 0:00:41]} 23. Ra3 {[%clk 0:01:09.6]} 23...
Nc3 {[%clk 0:00:39]} 24. Rxc3 {[%clk 0:00:56.9]} 24... Bxc3 {[%clk 0:00:39.9]}
25. Qc6 {[%clk 0:00:55]} 25... Bd2 {[%clk 0:00:31.2]} 26. Kh2 {[%clk 0:00:51.3]}
26... h6 {[%clk 0:00:24.5]} 27. Rb3 {[%clk 0:00:43]} 27... Qc4 {[%clk
0:00:20.5]} 28. Qd7 {[%clk 0:00:41.7]} 28... Qxc2 {[%clk 0:00:17.6]} 29. Qe6+
{[%clk 0:00:39.5]} 29... Kh8 {[%clk 0:00:14.6]} 30. Ra3 {[%clk 0:00:39.3]} 30...
Qf5 {[%clk 0:00:13.3]} 31. Qe7 {[%clk 0:00:38.1]} 31... Qf7 {[%clk 0:00:13.1]}
32. Qe4 {[%clk 0:00:36.2]} 32... Bb4 {[%clk 0:00:12.8]} 33. Ra1 {[%clk
0:00:35.3]} 33... Bc4 {[%clk 0:00:12.6]} 34. Rc1 {[%clk 0:00:34.7]} 34... Bd5
{[%clk 0:00:12.9]} 35. Qg4 {[%clk 0:00:34.9]} 35... a4 {[%clk 0:00:12.4]} 36. e4
{[%clk 0:00:35]} 36... Be6 {[%clk 0:00:11.9]} 37. Qd1 {[%clk 0:00:34.9]} 37...
a3 {[%clk 0:00:10.7]} 38. Qa4 {[%clk 0:00:35.1]} 38... c5 {[%clk 0:00:09.5]} 39.
Bxd6 {[%clk 0:00:33.8]} 39... Rd8 {[%clk 0:00:07.3]} 40. dxc5 {[%clk 0:00:33]}
40... Bxc5 {[%clk 0:00:04.9]} 41. Bxc5 {[%clk 0:00:25.1]} 41... Qf4+ {[%clk
0:00:04.4]} 42. g3 {[%clk 0:00:22.2]} 42... Qxc1 {[%clk 0:00:04.6]} 43. Bxb6
{[%clk 0:00:21.9]} 43... Rf8 {[%clk 0:00:03.7]} 44. Be3 {[%clk 0:00:19.5]} 44...
Qb2 {[%clk 0:00:02.5]} 45. Kg2 {[%clk 0:00:19.4]} 45... Qf6 {[%clk 0:00:02.6]}
46. f4 {[%clk 0:00:18.4]} 46... Qe7 {[%clk 0:00:01.8]} 47. e5 {[%clk 0:00:18]}
47... Bd5+ {[%clk 0:00:01.8]} 48. Kf2 {[%clk 0:00:18]} 48... Rc8 {[%clk
0:00:01.1]} 49. Bd4 {[%clk 0:00:16.1]} 49... Qb7 {[%clk 0:00:01.4]} 50. Qxa3
{[%clk 0:00:15.7]} 50... Qb3 {[%clk 0:00:01.3]} 51. Qxb3 {[%clk 0:00:13.6]}
51... Bxb3 {[%clk 0:00:01.2]} 52. f5 {[%clk 0:00:14.5]} 52... Bd5 {[%clk
0:00:01.5]} 53. g4 {[%clk 0:00:14.7]} 53... Bg8 {[%clk 0:00:02.3]} 54. e6 {[%clk
0:00:14.7]} 54... Re8 {[%clk 0:00:02]} 55. Kg3 {[%clk 0:00:15]} 55... Bxe6
{[%clk 0:00:02.5]} 56. fxe6 {[%clk 0:00:15.9]} 56... Rxe6 {[%clk 0:00:03.4]} 57.
h4 {[%clk 0:00:16]} 57... Kh7 {[%clk 0:00:04]} 58. h5 {[%clk 0:00:16.1]} 58...
Re4 {[%clk 0:00:04.4]} 59. Bc5 {[%clk 0:00:16.2]} 59... Kg8 {[%clk 0:00:04.6]}
60. Bd6 {[%clk 0:00:15.4]} 60... Kf7 {[%clk 0:00:04.6]} 61. Bf4 {[%clk 0:00:16]}
61... Kf6 {[%clk 0:00:04.6]} 62. Kf3 {[%clk 0:00:16.5]} 62... Rb4 {[%clk
0:00:04.6]} 63. Bd6 {[%clk 0:00:16]} 63... Rb3+ {[%clk 0:00:04.6]} 64. Kf4
{[%clk 0:00:16.5]} 64... Rb6 {[%clk 0:00:03.4]} 65. Be5+ {[%clk 0:00:16.1]}
65... Kf7 {[%clk 0:00:03.7]} 66. Bd4 {[%clk 0:00:15.9]} 66... Rb4 {[%clk
0:00:03.7]} 67. Ke4 {[%clk 0:00:16.2]} 67... Rb7 {[%clk 0:00:02.6]} 68. Kf5
{[%clk 0:00:16.2]} 68... Rb5+ {[%clk 0:00:02.4]} 69. Be5 {[%clk 0:00:16.6]}
69... Rb1 {[%clk 0:00:02.1]} 70. Kf4 {[%clk 0:00:16.5]} 70... Rf1+ {[%clk
0:00:02.6]} 71. Ke4 {[%clk 0:00:16.9]} 71... g6 {[%clk 0:00:02]} 72. Bf4 {[%clk
0:00:16.1]} 72... gxh5 {[%clk 0:00:01.6]} 73. gxh5 {[%clk 0:00:17]} 73... Kg7
{[%clk 0:00:01.2]} 74. Kf5 {[%clk 0:00:17]} 74... Rh1 {[%clk 0:00:01.1]} 75. Kg4
{[%clk 0:00:17.3]} 75... Rg1+ {[%clk 0:00:01.7]} 76. Kf5 {[%clk 0:00:17.3]}
76... Rg2 {[%clk 0:00:01.9]} 77. Be5+ {[%clk 0:00:17.2]} 77... Kh7 {[%clk
0:00:01.1]} 78. Bf4 {[%clk 0:00:18.1]} 78... Rg1 {[%clk 0:00:01.1]} 79. Kf6
{[%clk 0:00:17.7]} 79... Rg4 {[%clk 0:00:01.1]} 80. Kf5 {[%clk 0:00:17.6]} 80...
Rh4 {[%clk 0:00:01]} 81. Be5 {[%clk 0:00:17.9]} 81... Rxh5+ {[%clk 0:00:01.3]}
82. Kf4 {[%clk 0:00:18.4]} 82... Rg5 {[%clk 0:00:01.5]} 83. Bf6 {[%clk
0:00:18.5]} 83... Rg6 {[%clk 0:00:01.9]} 84. Be7 {[%clk 0:00:18.5]} 84... Kg7
{[%clk 0:00:02.4]} 85. Bd8 {[%clk 0:00:18.5]} 85... Kf7 {[%clk 0:00:02.9]} 86.
Bb6 {[%clk 0:00:18.6]} 86... Rc6 {[%clk 0:00:03.8]} 87. Bf2 {[%clk 0:00:18.3]}
87... Rc4+ {[%clk 0:00:04.2]} 88. Kg3 {[%clk 0:00:18.5]} 88... Kg6 {[%clk
0:00:04.4]} 89. Kh3 {[%clk 0:00:19.3]} 89... Kg5 {[%clk 0:00:04.3]} 90. Bg3
{[%clk 0:00:19.6]} 90... h5 {[%clk 0:00:04.4]} 91. Kh2 {[%clk 0:00:19.9]} 91...
Rc3 {[%clk 0:00:04.6]} 92. Bd6 {[%clk 0:00:18.4]} 92... Kg4 {[%clk 0:00:04.4]}
93. Be5 {[%clk 0:00:18.3]} 93... Rc2+ {[%clk 0:00:04.5]} 94. Kh1 {[%clk
0:00:18.7]} 94... Kh3 {[%clk 0:00:04.7]} 95. Bd4 {[%clk 0:00:19.1]} 95... Rd2
{[%clk 0:00:04.7]} 96. Be3 {[%clk 0:00:19.2]} 96... Re2 {[%clk 0:00:04.9]} 97.
Bd4 {[%clk 0:00:19.5]} 97... Kg3 {[%clk 0:00:05]} 98. Bc5 {[%clk 0:00:19.5]}
98... h4 {[%clk 0:00:05.2]} 99. Bb6 {[%clk 0:00:19.8]} 99... Rc2 {[%clk
0:00:04.4]} 100. Ba7 {[%clk 0:00:19.7]} 100... Rc1+ {[%clk 0:00:03.1]} 101. Bg1
{[%clk 0:00:18.7]} 101... Rc8 {[%clk 0:00:03.3]} 102. Bd4 {[%clk 0:00:18.2]}
102... h3 {[%clk 0:00:02.5]} 103. Be5+ {[%clk 0:00:18]} 103... Kg4 {[%clk
0:00:02.7]} 104. Bd4 {[%clk 0:00:18.3]} 104... Re8 {[%clk 0:00:02.3]} 105. Bc5
{[%clk 0:00:18.3]} 105... Re1+ {[%clk 0:00:02]} 106. Kh2 {[%clk 0:00:18.6]}
106... Rc1 {[%clk 0:00:01.4]} 107. Bd4 {[%clk 0:00:18.5]} 107... Rc2+ {[%clk
0:00:01.5]} 108. Kh1 {[%clk 0:00:19.1]} 108... Re2 {[%clk 0:00:02]} 109. Bc5
{[%clk 0:00:19.3]} 109... Rb2 {[%clk 0:00:02.1]} 110. Bd4 {[%clk 0:00:19.7]}
110... Rc2 {[%clk 0:00:02.5]} 111. Be3 {[%clk 0:00:19.8]} 111... Kf3 {[%clk
0:00:02.4]} 112. Ba7 {[%clk 0:00:19.2]} 112... Rg2 {[%clk 0:00:02.7]} 113. Bg1
{[%clk 0:00:18.6]} 113... Kg3 {[%clk 0:00:02.2]} 114. Bc5 {[%clk 0:00:18.5]}
114... Rd2 {[%clk 0:00:01.9]} 115. Bb6 {[%clk 0:00:17.8]} 115... Rd1+ {[%clk
0:00:02]} 116. Bg1 {[%clk 0:00:17.3]} 116... Kf3 {[%clk 0:00:02.2]} 117. Kh2
{[%clk 0:00:17.4]} 117... Ke2 {[%clk 0:00:01.9]} 118. Bb6 {[%clk 0:00:16.3]}
118... Rd3 {[%clk 0:00:01.7]} 119. Bc7 {[%clk 0:00:16.3]} 119... Kf1 {[%clk
0:00:01.5]} 120. Bg3 {[%clk 0:00:16.3]} 1/2-1/2

[Event "Early-Titled-Tuesday-Blitz-March-26-2024"]
[Site "Chess.com"]
[Date "2024.03.26"]
[Round "11"]
[White "NelsonLinda"]
[Black "NovoselovRoman"]
[Result "1/2-1/2"]
[WhiteElo "2642"]
[BlackElo "2558"]
[TimeControl "180+1"]
[EndTime "10:07:58 PDT"]
[Termination "Game drawn - insufficient material"]

1. Nf3 {[%clk 0:03:00.9]} 1... Nf6 {[%clk 0:02:46.9]} 2. d4 {[%clk 0:03:01]}
2... b6 {[%clk 0:02:47.4]} 3. Bg5 {[%clk 0:03:00.9]} 3... Bb7 {[%clk 0:02:47.9]}
4. Nbd2 {[%clk 0:02:59.7]} 4... Na6 {[%clk 0:02:33.6]} 5. e3 {[%clk 0:02:48.3]}
5... c5 {[%clk 0:02:33.4]} 6. Bd3 {[%clk 0:02:48]} 6... Rc8 {[%clk 0:02:29.9]}
7. c3 {[%clk 0:02:47.8]} 7... e6 {[%clk 0:02:25.7]} 8. O-O {[%clk 0:02:43.4]}
8... Be7 {[%clk 0:02:25.4]} 9. Re1 {[%clk 0:02:33.6]} 9... Nc7 {[%clk
0:02:21.3]} 10. e4 {[%clk 0:02:26]} 10... h6 {[%clk 0:02:17.5]} 11. Bh4 {[%clk
0:02:19.9]} 11... Nh5 {[%clk 0:02:05.6]} 12. Bg3 {[%clk 0:02:13.8]} 12... Nxg3
{[%clk 0:02:04.1]} 13. hxg3 {[%clk 0:02:14.7]} 13... O-O {[%clk 0:02:02.1]} 14.
Qe2 {[%clk 0:02:11.7]} 14... d6 {[%clk 0:01:56.3]} 15. Rad1 {[%clk 0:02:06]}
15... Qe8 {[%clk 0:01:53.9]} 16. e5 {[%clk 0:01:59.4]} 16... Rd8 {[%clk
0:01:44.7]} 17. Bb1 {[%clk 0:01:57]} 17... Qb5 {[%clk 0:01:33.1]} 18. Nc4 {[%clk
0:01:50.8]} 18... d5 {[%clk 0:01:15.9]} 19. Qc2 {[%clk 0:01:25.8]} 19... g6
{[%clk 0:01:16]} 20. Ne3 {[%clk 0:01:23.8]} 20... h5 {[%clk 0:01:10.5]} 21. Nh4
{[%clk 0:01:18.1]} 21... Bxh4 {[%clk 0:01:09.3]} 22. gxh4 {[%clk 0:01:19]} 22...
Rc8 {[%clk 0:01:06.5]} 23. g4 {[%clk 0:00:56.4]} 23... cxd4 {[%clk 0:00:32.1]}
24. Rxd4 {[%clk 0:00:54.6]} 24... Qc5 {[%clk 0:00:32.2]} 25. a4 {[%clk
0:00:50.5]} 25... Ne8 {[%clk 0:00:29.5]} 26. gxh5 {[%clk 0:00:48.2]} 26... Qxd4
{[%clk 0:00:26.5]} 27. cxd4 {[%clk 0:00:45.9]} 27... Rxc2 {[%clk 0:00:27.4]} 28.
Bxc2 {[%clk 0:00:44.1]} 28... gxh5 {[%clk 0:00:27.8]} 29. Rc1 {[%clk 0:00:39.5]}
29... Ng7 {[%clk 0:00:21.4]} 30. Bd3 {[%clk 0:00:38.4]} 30... Rc8 {[%clk
0:00:21.8]} 31. Rxc8+ {[%clk 0:00:32.4]} 31... Bxc8 {[%clk 0:00:22.7]} 32. Kg2
{[%clk 0:00:31]} 32... Kf8 {[%clk 0:00:22.4]} 33. Kg3 {[%clk 0:00:31.5]} 33...
Ke7 {[%clk 0:00:23]} 34. Kf4 {[%clk 0:00:32]} 34... f6 {[%clk 0:00:23.7]} 35.
Nf1 {[%clk 0:00:22.4]} 35... Bd7 {[%clk 0:00:23.6]} 36. b3 {[%clk 0:00:19.6]}
36... Kf7 {[%clk 0:00:20.5]} 37. Ng3 {[%clk 0:00:19.5]} 37... Be8 {[%clk
0:00:18.7]} 38. Ke3 {[%clk 0:00:10.5]} 38... f5 {[%clk 0:00:10.7]} 39. Ne2
{[%clk 0:00:08]} 39... Ke7 {[%clk 0:00:08.6]} 40. Nf4 {[%clk 0:00:08.3]} 40...
Bf7 {[%clk 0:00:09.2]} 41. Be2 {[%clk 0:00:08.4]} 41... Kf8 {[%clk 0:00:07.3]}
42. Kd2 {[%clk 0:00:08.8]} 42... Ke7 {[%clk 0:00:07.8]} 43. Kc3 {[%clk
0:00:09.2]} 43... Kd7 {[%clk 0:00:07.9]} 44. Kb4 {[%clk 0:00:07]} 44... Kc6
{[%clk 0:00:08.1]} 45. a5 {[%clk 0:00:06.5]} 45... Kc7 {[%clk 0:00:05.3]} 46.
Kb5 {[%clk 0:00:04.5]} 46... Kb7 {[%clk 0:00:05.8]} 47. axb6 {[%clk 0:00:04.1]}
47... axb6 {[%clk 0:00:05.4]} 48. Kb4 {[%clk 0:00:04.1]} 48... Kc7 {[%clk
0:00:05.5]} 49. Kc3 {[%clk 0:00:04]} 49... Kd7 {[%clk 0:00:05.3]} 50. Bb5+
{[%clk 0:00:02.2]} 50... Kc7 {[%clk 0:00:05.7]} 51. Kd2 {[%clk 0:00:02.2]} 51...
Kd8 {[%clk 0:00:03.2]} 52. Ke3 {[%clk 0:00:02]} 52... Be8 {[%clk 0:00:02.7]} 53.
Be2 {[%clk 0:00:02.4]} 53... Ke7 {[%clk 0:00:02.1]} 54. Nh3 {[%clk 0:00:02.5]}
54... Kf7 {[%clk 0:00:01.6]} 55. Ng5+ {[%clk 0:00:03]} 55... Kg6 {[%clk
0:00:01.9]} 56. Ba6 {[%clk 0:00:02.5]} 56... Bf7 {[%clk 0:00:01.7]} 57. Bc8
{[%clk 0:00:02.5]} 57... Bg8 {[%clk 0:00:02]} 58. Kd3 {[%clk 0:00:02.7]} 58...
f4 {[%clk 0:00:01.9]} 59. Ke2 {[%clk 0:00:02.3]} 59... Kf5 {[%clk 0:00:02.5]}
60. Kf3 {[%clk 0:00:02.6]} 60... Ne8 {[%clk 0:00:01.1]} 61. Bd7 {[%clk
0:00:02.9]} 61... Nc7 {[%clk 0:00:01.3]} 62. b4 {[%clk 0:00:03.1]} 62... Na6
{[%clk 0:00:01.2]} 63. b5 {[%clk 0:00:03.4]} 63... Nb4 {[%clk 0:00:01.9]} 64.
Nh3 {[%clk 0:00:02.9]} 64... Nc2 {[%clk 0:00:02.2]} 65. Nxf4 {[%clk 0:00:02.6]}
65... Nxd4+ {[%clk 0:00:02.8]} 66. Ke3 {[%clk 0:00:03]} 66... Nc2+ {[%clk
0:00:03.4]} 67. Kf3 {[%clk 0:00:03.4]} 67... Nd4+ {[%clk 0:00:03.8]} 68. Ke3
{[%clk 0:00:03.8]} 68... Nb3 {[%clk 0:00:03.7]} 69. Nxh5 {[%clk 0:00:03.2]}
69... Kxe5 {[%clk 0:00:04.3]} 70. f4+ {[%clk 0:00:03.3]} 70... Kd6 {[%clk
0:00:04.1]} 71. Be8 {[%clk 0:00:03.6]} 71... Nc5 {[%clk 0:00:04.4]} 72. Nf6
{[%clk 0:00:03.5]} 72... Ke7 {[%clk 0:00:03.5]} 73. Nxg8+ {[%clk 0:00:03.9]}
73... Kxe8 {[%clk 0:00:04.2]} 74. Nf6+ {[%clk 0:00:04.5]} 74... Kf7 {[%clk
0:00:04.7]} 75. Ng4 {[%clk 0:00:05]} 75... Kg6 {[%clk 0:00:04.8]} 76. Ne5+
{[%clk 0:00:05.3]} 76... Kf5 {[%clk 0:00:05.3]} 77. h5 {[%clk 0:00:05.1]} 77...
Ne4 {[%clk 0:00:04]} 78. Nd7 {[%clk 0:00:04.7]} 78... Nd6 {[%clk 0:00:02.4]} 79.
Nxb6 {[%clk 0:00:04.6]} 79... Nxb5 {[%clk 0:00:02.1]} 80. Nc8 {[%clk 0:00:04.3]}
80... Nc3 {[%clk 0:00:02.2]} 81. Nd6+ {[%clk 0:00:03.9]} 81... Kf6 {[%clk
0:00:02.4]} 82. Kd4 {[%clk 0:00:03.6]} 82... Ne2+ {[%clk 0:00:03]} 83. Ke3
{[%clk 0:00:04.1]} 83... Ng3 {[%clk 0:00:03.6]} 84. h6 {[%clk 0:00:04]} 84...
Kg6 {[%clk 0:00:04.2]} 85. Kf3 {[%clk 0:00:02.4]} 85... Nh5 {[%clk 0:00:04]} 86.
Kg4 {[%clk 0:00:02]} 86... Nf6+ {[%clk 0:00:04.6]} 87. Kf3 {[%clk 0:00:02.4]}
87... Kxh6 {[%clk 0:00:05.3]} 88. Nf7+ {[%clk 0:00:02.9]} 88... Kg6 {[%clk
0:00:05.8]} 89. Ne5+ {[%clk 0:00:03.3]} 89... Kf5 {[%clk 0:00:06.4]} 90. Nd3
{[%clk 0:00:03.8]} 90... Ne4 {[%clk 0:00:06.9]} 91. Ke3 {[%clk 0:00:04.2]} 91...
Nd6 {[%clk 0:00:07.1]} 92. Kd4 {[%clk 0:00:04.5]} 92... Ne8 {[%clk 0:00:06.1]}
93. Ke3 {[%clk 0:00:04.6]} 93... Nf6 {[%clk 0:00:06.6]} 94. Kf3 {[%clk
0:00:04.3]} 94... Nh5 {[%clk 0:00:07]} 95. Ke3 {[%clk 0:00:04.4]} 95... Ng3
{[%clk 0:00:07.2]} 96. Kf3 {[%clk 0:00:04.9]} 96... Ne4 {[%clk 0:00:07.7]} 97.
Ke3 {[%clk 0:00:05.4]} 97... Nc3 {[%clk 0:00:08]} 98. Kd4 {[%clk 0:00:05.1]}
98... Nb5+ {[%clk 0:00:07.9]} 99. Ke3 {[%clk 0:00:04.9]} 99... d4+ {[%clk
0:00:08.3]} 100. Kf3 {[%clk 0:00:04.8]} 100... Nc3 {[%clk 0:00:06.4]} 101. Nc5
{[%clk 0:00:03.8]} 101... Nd5 {[%clk 0:00:06.5]} 102. Nd3 {[%clk 0:00:03.6]}
102... Nb6 {[%clk 0:00:06.5]} 103. Nc5 {[%clk 0:00:03.5]} 103... Nc4 {[%clk
0:00:06.4]} 104. Nd3 {[%clk 0:00:03.6]} 104... Nd6 {[%clk 0:00:06.7]} 105. Nc5
{[%clk 0:00:03.6]} 105... Kf6 {[%clk 0:00:06.4]} 106. Ne4+ {[%clk 0:00:02.8]}
106... Nxe4 {[%clk 0:00:06.9]} 107. Kxe4 {[%clk 0:00:03.7]} 107... d3 {[%clk
0:00:04]} 108. Kxd3 {[%clk 0:00:04.1]} 108... Kf5 {[%clk 0:00:04.6]} 109. Ke3
{[%clk 0:00:04.6]} 109... e5 {[%clk 0:00:04.4]} 110. fxe5 {[%clk 0:00:04.9]}
110... Kxe5 {[%clk 0:00:05.3]} 1/2-1/2